{"text_format":"3","workbook":"xlsx","n_sheets":6,"sheets":["Dashboard","Vendas","Rendimentos","Despesas","Impostos","Categorias"],"not_rendered":{"images":1,"defined_names":34},"read":"whole","date_system":"1900"}

{"sheet":"Dashboard","index":0,"n_rows":20,"n_cols":8,"rows_kept":20,"merged":[[0,2,0,4],[0,6,3,7],[5,1,5,7]]}
[null,"Demonstração dos Resultados","De [Mês ou Ano] a [Dia/Mês/Ano]"]
[null,"Nome da Empresa","Indicado em milhares"]
[null,"Margem Bruta Atual [L/J]",{"$f":"IFERROR(IF(Lucro_Bruto_Total=0,\"-\",Lucro_Bruto_Total/Receita_Total_Vendas),\"-\")","v":"-"}]
[null,"Rendimentos Atuais das vendas [T/J]",{"$f":"IFERROR(IF(Lucro_Líquido=0,\"-\",Lucro_Líquido/Receita_Total_Vendas),\"-\")","v":"-"}]
[]
[null,"Não modifique as categorias nesta folha de cálculo, pois poderá quebrar as fórmulas. Utilize a folha de cálculo Categorias para adicionar categorias e atualizar as respetivas folhas de cálculo com entradas. Esta folha de cálculo é atualizada automaticamente"]
[null,"Resumo","Total do Período Anterior","Orçamento Total","Total Atual\nPeríodo","Total do Período Atual em % de Vendas","% Total de Alteração Com Base no Período Anterior","% Total de Alteração Com Base no Orçamento"]
[null,"Receita Total das Vendas [J]",{"$f":"SUMIFS(Receitas_das_Vendas1[Período Anterior],Receitas_das_Vendas1[Tipo de Receita],\"Receita das Vendas\")","v":0},{"$f":"SUMIFS(Receitas_das_Vendas1[Orçamento],Receitas_das_Vendas1[Tipo de Receita],\"Receita das Vendas\")","v":0},{"$f":"SUMIFS(Receitas_das_Vendas1[Período Atual],Receitas_das_Vendas1[Tipo de Receita],\"Receita das Vendas\")","v":0},{"$f":"SUMIFS(Receitas_das_Vendas1[Período Atual em % de Vendas],Receitas_das_Vendas1[Tipo de Receita],\"Receita das Vendas\")","v":{"v":0,"d":"0.00%"}},{"$f":"SUMIFS(Receitas_das_Vendas1[% de Alteração Com Base no Período Anterior],Receitas_das_Vendas1[Tipo de Receita],\"Receita das Vendas\")","v":{"v":0,"d":"0.00%"}},{"$f":"SUMIFS(Receitas_das_Vendas1[% de Alteração Com Base no Orçamento],Receitas_das_Vendas1[Tipo de Receita],\"Receita das Vendas\")","v":{"v":0,"d":"0.00%"}}]
[null,"Custo Total das Vendas [K]",{"$f":"SUMIFS(Receitas_das_Vendas1[Período Anterior],Receitas_das_Vendas1[Tipo de Receita],\"Custos das Vendas\")","v":0},{"$f":"SUMIFS(Receitas_das_Vendas1[Orçamento],Receitas_das_Vendas1[Tipo de Receita],\"Custos das Vendas\")","v":0},{"$f":"SUMIFS(Receitas_das_Vendas1[Período Atual],Receitas_das_Vendas1[Tipo de Receita],\"Custos das Vendas\")","v":0},{"$f":"SUMIFS(Receitas_das_Vendas1[Período Atual em % de Vendas],Receitas_das_Vendas1[Tipo de Receita],\"Custos das Vendas\")","v":{"v":0,"d":"0.00%"}},{"$f":"SUMIFS(Receitas_das_Vendas1[% de Alteração Com Base no Período Anterior],Receitas_das_Vendas1[Tipo de Receita],\"Custos das Vendas\")","v":{"v":0,"d":"0.00%"}},{"$f":"SUMIFS(Receitas_das_Vendas1[% de Alteração Com Base no Orçamento],Receitas_das_Vendas1[Tipo de Receita],\"Custos das Vendas\")","v":{"v":0,"d":"0.00%"}}]
[null,"Vendas e Despesas Totais de Marketing [M]",{"$f":"SUMIFS(OperatingExpenses[Período Anterior],OperatingExpenses[Tipo de Despesa],\"Vendas e Marketing\")","v":0},{"$f":"SUMIFS(OperatingExpenses[Orçamento],OperatingExpenses[Tipo de Despesa],\"Vendas e Marketing\")","v":0},{"$f":"SUMIFS(OperatingExpenses[Período Atual],OperatingExpenses[Tipo de Despesa],\"Vendas e Marketing\")","v":0},{"$f":"SUMIFS(OperatingExpenses[Período Atual em % de Vendas],OperatingExpenses[Tipo de Despesa],\"Vendas e Marketing\")","v":{"v":0,"d":"0.00%"}},{"$f":"SUMIFS(OperatingExpenses[% de Alteração Com Base no Período Anterior],OperatingExpenses[Tipo de Despesa],\"Vendas e Marketing\")","v":{"v":0,"d":"0.00%"}},{"$f":"SUMIFS(OperatingExpenses[% de Alteração Com Base no Orçamento],OperatingExpenses[Tipo de Despesa],\"Vendas e Marketing\")","v":{"v":0,"d":"0.00%"}}]
[null,"Despesas Totais de Investigação e Desenvolvimento [N]",{"$f":"SUMIFS(OperatingExpenses[Período Anterior],OperatingExpenses[Tipo de Despesa],\"Investigação e Desenvolvimento\")","v":0},{"$f":"SUMIFS(OperatingExpenses[Orçamento],OperatingExpenses[Tipo de Despesa],\"Investigação e Desenvolvimento\")","v":0},{"$f":"SUMIFS(OperatingExpenses[Período Atual],OperatingExpenses[Tipo de Despesa],\"Investigação e Desenvolvimento\")","v":0},{"$f":"SUMIFS(OperatingExpenses[Período Atual em % de Vendas],OperatingExpenses[Tipo de Despesa],\"Investigação e Desenvolvimento\")","v":{"v":0,"d":"0.00%"}},{"$f":"SUMIFS(OperatingExpenses[% de Alteração Com Base no Período Anterior],OperatingExpenses[Tipo de Despesa],\"Investigação e Desenvolvimento\")","v":{"v":0,"d":"0.00%"}},{"$f":"SUMIFS(OperatingExpenses[% de Alteração Com Base no Orçamento],OperatingExpenses[Tipo de Despesa],\"Investigação e Desenvolvimento\")","v":{"v":0,"d":"0.00%"}}]
[null,"Despesas Totais Gerais e Administrativas [O]",{"$f":"SUMIFS(OperatingExpenses[Período Anterior],OperatingExpenses[Tipo de Despesa],\"Geral e Administrativo\")","v":0},{"$f":"SUMIFS(OperatingExpenses[Orçamento],OperatingExpenses[Tipo de Despesa],\"Geral e Administrativo\")","v":0},{"$f":"SUMIFS(OperatingExpenses[Período Atual],OperatingExpenses[Tipo de Despesa],\"Geral e Administrativo\")","v":0},{"$f":"SUMIFS(OperatingExpenses[Período Atual em % de Vendas],OperatingExpenses[Tipo de Despesa],\"Geral e Administrativo\")","v":{"v":0,"d":"0.00%"}},{"$f":"SUMIFS(OperatingExpenses[% de Alteração Com Base no Período Anterior],OperatingExpenses[Tipo de Despesa],\"Geral e Administrativo\")","v":{"v":0,"d":"0.00%"}},{"$f":"SUMIFS(OperatingExpenses[% de Alteração Com Base no Orçamento],OperatingExpenses[Tipo de Despesa],\"Geral e Administrativo\")","v":{"v":0,"d":"0.00%"}}]
[null,"Total de Outras Despesas Operacionais [P]",{"$f":"OperatingExpenses[[#Totals],[Período Anterior]]-SUM(C10:C12)","v":0},{"$f":"OperatingExpenses[[#Totals],[Orçamento]]-SUM(D10:D12)","v":0},{"$f":"OperatingExpenses[[#Totals],[Período Atual]]-SUM(E10:E12)","v":0},{"$f":"OperatingExpenses[[#Totals],[Período Atual em % de Vendas]]-SUM(F10:F12)","v":{"v":0,"d":"0.00%"}},{"$f":"OperatingExpenses[[#Totals],[% de Alteração Com Base no Período Anterior]]-SUM(G10:G12)","v":{"v":0,"d":"0.00%"}},{"$f":"OperatingExpenses[[#Totals],[% de Alteração Com Base no Orçamento]]-SUM(H10:H12)","v":{"v":0,"d":"0.00%"}}]
[null,"Outros Rendimentos [S]",{"$f":"Rendimentos[[#Totals],[Período Anterior]]","v":0},{"$f":"Rendimentos[[#Totals],[Orçamento]]","v":0},{"$f":"Rendimentos[[#Totals],[Período Atual]]","v":0},{"$f":"Rendimentos[[#Totals],[Período Atual em % de Vendas]]","v":{"v":0,"d":"0.00%"}},{"$f":"Rendimentos[[#Totals],[% de Alteração Com Base no Período Anterior]]","v":{"v":0,"d":"0.00%"}},{"$f":"Rendimentos[[#Totals],[% de Alteração Com Base no Orçamento]]","v":{"v":0,"d":"0.00%"}}]
[null,"Total dos Impostos [T]",{"$f":"Impostos[[#Totals],[Período Anterior]]","v":0},{"$f":"Impostos[[#Totals],[Orçamento]]","v":0},{"$f":"Impostos[[#Totals],[Período Atual]]","v":0},{"$f":"Impostos[[#Totals],[Período Atual em % de Vendas]]","v":{"v":0,"d":"0.00%"}},{"$f":"Impostos[[#Totals],[% de Alteração Com Base no Período Anterior]]","v":{"v":0,"d":"0.00%"}},{"$f":"Impostos[[#Totals],[% de Alteração Com Base no Orçamento]]","v":{"v":0,"d":"0.00%"}}]
[]
[null,"Lucro Bruto [L=J-K]",{"$f":"IFERROR(C8-C9,\"-\")","v":0},{"$f":"IFERROR(D8-D9,\"-\")","v":0},{"$f":"IFERROR(Receita_Total_Vendas-Custo_Total_das_Vendas,\"-\")","v":0},{"$f":"IFERROR(IF(Receita_Total_Vendas=0,\"0.00%\",Lucro_Bruto_Total/Receita_Total_Vendas),\"-\")","v":"0.00%"},{"$f":"IFERROR(IF(C17=Lucro_Bruto_Total,0,IF(Lucro_Bruto_Total>C17,ABS((Lucro_Bruto_Total/C17)-1),IF(AND(Lucro_Bruto_Total<C17,C17<0),-((Lucro_Bruto_Total/C17)-1),(Lucro_Bruto_Total/C17)-1))),\"-\")","v":{"v":0,"d":"0.00%"}},{"$f":"IFERROR(IF(D17=Lucro_Bruto_Total,0,IF(Lucro_Bruto_Total>D17,ABS((Lucro_Bruto_Total/D17)-1),IF(AND(Lucro_Bruto_Total<D17,D17<0),-((Lucro_Bruto_Total/D17)-1),(Lucro_Bruto_Total/D17)-1))),\"-\")","v":{"v":0,"d":"0.00%"}}]
[null,"Despesas Operacionais Totais [Q=M+N+O+P]",{"$f":"IFERROR(C10+C11+C12+C13,\"-\")","v":0},{"$f":"IFERROR(D10+D11+D12+D13,\"-\")","v":0},{"$f":"IFERROR(Total_Vendas_e_Marketing+Total_Investigação_e_Desenvolvimento+Totais_Gerais_e_Administrativas+Total_Outras_Despesas,\"-\")","v":0},{"$f":"IFERROR(IF(Receita_Total_Vendas=0,\"0.00%\",Total_Despesas_Operacionais/Receita_Total_Vendas),\"-\")","v":"0.00%"},{"$f":"IFERROR(IF(C18=Total_Despesas_Operacionais,0,IF(Total_Despesas_Operacionais>C18,ABS((Total_Despesas_Operacionais/C18)-1),IF(AND(Total_Despesas_Operacionais<C18,C18<0),-((Total_Despesas_Operacionais/C18)-1),(Total_Despesas_Operacionais/C18)-1))),\"-\")","v":{"v":0,"d":"0.00%"}},{"$f":"IFERROR(IF(D18=Total_Despesas_Operacionais,0,IF(Total_Despesas_Operacionais>D18,ABS((Total_Despesas_Operacionais/D18)-1),IF(AND(Total_Despesas_Operacionais<D18,D18<0),-((Total_Despesas_Operacionais/D18)-1),(Total_Despesas_Operacionais/D18)-1))),\"-\")","v":{"v":0,"d":"0.00%"}}]
[null,"Rendimentos das Operações [R=L-Q]",{"$f":"IFERROR(C17-C18,\"-\")","v":0},{"$f":"IFERROR(D17-D18,\"-\")","v":0},{"$f":"IFERROR(Lucro_Bruto_Total-Total_Despesas_Operacionais,\"-\")","v":0},{"$f":"IFERROR(IF(Receita_Total_Vendas=0,\"0.00%\",Total_Rendimentos_das_Operações/Receita_Total_Vendas),\"-\")","v":"0.00%"},{"$f":"IFERROR(IF(C19=Total_Rendimentos_das_Operações,0,IF(Total_Rendimentos_das_Operações>C19,ABS((Total_Rendimentos_das_Operações/C19)-1),IF(AND(Total_Rendimentos_das_Operações<C19,C19<0),-((Total_Rendimentos_das_Operações/C19)-1),(Total_Rendimentos_das_Operações/C19)-1))),\"-\")","v":{"v":0,"d":"0.00%"}},{"$f":"IFERROR(IF(D19=Total_Rendimentos_das_Operações,0,IF(Total_Rendimentos_das_Operações>D19,ABS((Total_Rendimentos_das_Operações/D19)-1),IF(AND(Total_Rendimentos_das_Operações<D19,D19<0),-((Total_Rendimentos_das_Operações/D19)-1),(Total_Rendimentos_das_Operações/D19)-1))),\"-\")","v":{"v":0,"d":"0.00%"}}]
[null,"Lucro Líquido [U=R+S-T]",{"$f":"IFERROR(C19+C14-C15,\"-\")","v":0},{"$f":"IFERROR(D19+D14-D15,\"-\")","v":0},{"$f":"Total_Rendimentos_das_Operações+Total_Outros_Rendimentos-Total_Impostos","v":0},{"$f":"IFERROR(IF(Receita_Total_Vendas=0,\"0.00%\",Lucro_Líquido/Receita_Total_Vendas),\"-\")","v":"0.00%"},{"$f":"IFERROR(IF(C20=Lucro_Líquido,0,IF(Lucro_Líquido>C20,ABS((Lucro_Líquido/C20)-1),IF(AND(Lucro_Líquido<C20,C20<0),-((Lucro_Líquido/C20)-1),(Lucro_Líquido/C20)-1))),\"-\")","v":{"v":0,"d":"0.00%"}},{"$f":"IFERROR(IF(D20=Lucro_Líquido,0,IF(Lucro_Líquido>D20,ABS((Lucro_Líquido/D20)-1),IF(AND(Lucro_Líquido<D20,D20<0),-((Lucro_Líquido/D20)-1),(Lucro_Líquido/D20)-1))),\"-\")","v":{"v":0,"d":"0.00%"}}]

{"sheet":"Vendas","index":1,"n_rows":13,"n_cols":9,"rows_kept":13,"merged":[[0,7,2,8]]}
[null,{"$f":"Workbook_Title","v":"Demonstração dos Resultados"}]
[null,{"$f":"Nome_da_Empresa","v":"Nome da Empresa"},"Indicado em milhares"]
[null,"Receita das Vendas",{"$f":"IFERROR(Receitas_das_Vendas,\"-\")","v":0}]
[null,"Tipo de Receita","Descrição","Período Anterior","Orçamento","Período Atual","Período Atual em % de Vendas","% de Alteração Com Base no Período Anterior","% de Alteração Com Base no Orçamento"]
[null,"Receita das Vendas","Produto/Serviço 1",{"$nulls":3},{"$f":"IFERROR(IF(Receitas_das_Vendas1[[#Totals],[Período Atual]]=0,\"-\",Receitas_das_Vendas1[[#This Row],[Período Atual]]/Receitas_das_Vendas),\"-\")","v":"-"},{"$f":"IFERROR(IF(Receitas_das_Vendas1[[#This Row],[Período Anterior]]=Receitas_das_Vendas1[[#This Row],[Período Atual]],0,IF(Receitas_das_Vendas1[[#This Row],[Período Atual]]>Receitas_das_Vendas1[[#This Row],[Período Anterior]],ABS((Receitas_das_Vendas1[[#This Row],[Período Atual]]/Receitas_das_Vendas1[[#This Row],[Período Anterior]])-1),IF(AND(Receitas_das_Vendas1[[#This Row],[Período Atual]]<Receitas_das_Vendas1[[#This Row],[Período Anterior]],Receitas_das_Vendas1[[#This Row],[Período Anterior]]<0),-((Receitas_das_Vendas1[[#This Row],[Período Atual]]/Receitas_das_Vendas1[[#This Row],[Período Anterior]])-1),(Receitas_das_Vendas1[[#This Row],[Período Atual]]/Receitas_das_Vendas1[[#This Row],[Período Anterior]])-1))),\"-\")","v":{"v":0,"d":"0.00%"}},{"$f":"IFERROR(IF(Receitas_das_Vendas1[[#This Row],[Orçamento]]=Receitas_das_Vendas1[[#This Row],[Período Atual]],0,IF(Receitas_das_Vendas1[[#This Row],[Período Atual]]>Receitas_das_Vendas1[[#This Row],[Orçamento]],ABS((Receitas_das_Vendas1[[#This Row],[Período Atual]]/Receitas_das_Vendas1[[#This Row],[Orçamento]])-1),IF(AND(Receitas_das_Vendas1[[#This Row],[Período Atual]]<Receitas_das_Vendas1[[#This Row],[Orçamento]],Receitas_das_Vendas1[[#This Row],[Orçamento]]<0),-((Receitas_das_Vendas1[[#This Row],[Período Atual]]/Receitas_das_Vendas1[[#This Row],[Orçamento]])-1),(Receitas_das_Vendas1[[#This Row],[Período Atual]]/Receitas_das_Vendas1[[#This Row],[Orçamento]])-1))),\"-\")","v":{"v":0,"d":"0.00%"}}]
[null,"Receita das Vendas","Produto/Serviço 2",{"$nulls":3},{"$f":"IFERROR(IF(Receitas_das_Vendas1[[#Totals],[Período Atual]]=0,\"-\",Receitas_das_Vendas1[[#This Row],[Período Atual]]/Receitas_das_Vendas),\"-\")","v":"-"},{"$f":"IFERROR(IF(Receitas_das_Vendas1[[#This Row],[Período Anterior]]=Receitas_das_Vendas1[[#This Row],[Período Atual]],0,IF(Receitas_das_Vendas1[[#This Row],[Período Atual]]>Receitas_das_Vendas1[[#This Row],[Período Anterior]],ABS((Receitas_das_Vendas1[[#This Row],[Período Atual]]/Receitas_das_Vendas1[[#This Row],[Período Anterior]])-1),IF(AND(Receitas_das_Vendas1[[#This Row],[Período Atual]]<Receitas_das_Vendas1[[#This Row],[Período Anterior]],Receitas_das_Vendas1[[#This Row],[Período Anterior]]<0),-((Receitas_das_Vendas1[[#This Row],[Período Atual]]/Receitas_das_Vendas1[[#This Row],[Período Anterior]])-1),(Receitas_das_Vendas1[[#This Row],[Período Atual]]/Receitas_das_Vendas1[[#This Row],[Período Anterior]])-1))),\"-\")","v":{"v":0,"d":"0.00%"}},{"$f":"IFERROR(IF(Receitas_das_Vendas1[[#This Row],[Orçamento]]=Receitas_das_Vendas1[[#This Row],[Período Atual]],0,IF(Receitas_das_Vendas1[[#This Row],[Período Atual]]>Receitas_das_Vendas1[[#This Row],[Orçamento]],ABS((Receitas_das_Vendas1[[#This Row],[Período Atual]]/Receitas_das_Vendas1[[#This Row],[Orçamento]])-1),IF(AND(Receitas_das_Vendas1[[#This Row],[Período Atual]]<Receitas_das_Vendas1[[#This Row],[Orçamento]],Receitas_das_Vendas1[[#This Row],[Orçamento]]<0),-((Receitas_das_Vendas1[[#This Row],[Período Atual]]/Receitas_das_Vendas1[[#This Row],[Orçamento]])-1),(Receitas_das_Vendas1[[#This Row],[Período Atual]]/Receitas_das_Vendas1[[#This Row],[Orçamento]])-1))),\"-\")","v":{"v":0,"d":"0.00%"}}]
[null,"Receita das Vendas","Produto/Serviço 3",{"$nulls":3},{"$f":"IFERROR(IF(Receitas_das_Vendas1[[#Totals],[Período Atual]]=0,\"-\",Receitas_das_Vendas1[[#This Row],[Período Atual]]/Receitas_das_Vendas),\"-\")","v":"-"},{"$f":"IFERROR(IF(Receitas_das_Vendas1[[#This Row],[Período Anterior]]=Receitas_das_Vendas1[[#This Row],[Período Atual]],0,IF(Receitas_das_Vendas1[[#This Row],[Período Atual]]>Receitas_das_Vendas1[[#This Row],[Período Anterior]],ABS((Receitas_das_Vendas1[[#This Row],[Período Atual]]/Receitas_das_Vendas1[[#This Row],[Período Anterior]])-1),IF(AND(Receitas_das_Vendas1[[#This Row],[Período Atual]]<Receitas_das_Vendas1[[#This Row],[Período Anterior]],Receitas_das_Vendas1[[#This Row],[Período Anterior]]<0),-((Receitas_das_Vendas1[[#This Row],[Período Atual]]/Receitas_das_Vendas1[[#This Row],[Período Anterior]])-1),(Receitas_das_Vendas1[[#This Row],[Período Atual]]/Receitas_das_Vendas1[[#This Row],[Período Anterior]])-1))),\"-\")","v":{"v":0,"d":"0.00%"}},{"$f":"IFERROR(IF(Receitas_das_Vendas1[[#This Row],[Orçamento]]=Receitas_das_Vendas1[[#This Row],[Período Atual]],0,IF(Receitas_das_Vendas1[[#This Row],[Período Atual]]>Receitas_das_Vendas1[[#This Row],[Orçamento]],ABS((Receitas_das_Vendas1[[#This Row],[Período Atual]]/Receitas_das_Vendas1[[#This Row],[Orçamento]])-1),IF(AND(Receitas_das_Vendas1[[#This Row],[Período Atual]]<Receitas_das_Vendas1[[#This Row],[Orçamento]],Receitas_das_Vendas1[[#This Row],[Orçamento]]<0),-((Receitas_das_Vendas1[[#This Row],[Período Atual]]/Receitas_das_Vendas1[[#This Row],[Orçamento]])-1),(Receitas_das_Vendas1[[#This Row],[Período Atual]]/Receitas_das_Vendas1[[#This Row],[Orçamento]])-1))),\"-\")","v":{"v":0,"d":"0.00%"}}]
[null,"Receita das Vendas","Produto/Serviço 4",{"$nulls":3},{"$f":"IFERROR(IF(Receitas_das_Vendas1[[#Totals],[Período Atual]]=0,\"-\",Receitas_das_Vendas1[[#This Row],[Período Atual]]/Receitas_das_Vendas),\"-\")","v":"-"},{"$f":"IFERROR(IF(Receitas_das_Vendas1[[#This Row],[Período Anterior]]=Receitas_das_Vendas1[[#This Row],[Período Atual]],0,IF(Receitas_das_Vendas1[[#This Row],[Período Atual]]>Receitas_das_Vendas1[[#This Row],[Período Anterior]],ABS((Receitas_das_Vendas1[[#This Row],[Período Atual]]/Receitas_das_Vendas1[[#This Row],[Período Anterior]])-1),IF(AND(Receitas_das_Vendas1[[#This Row],[Período Atual]]<Receitas_das_Vendas1[[#This Row],[Período Anterior]],Receitas_das_Vendas1[[#This Row],[Período Anterior]]<0),-((Receitas_das_Vendas1[[#This Row],[Período Atual]]/Receitas_das_Vendas1[[#This Row],[Período Anterior]])-1),(Receitas_das_Vendas1[[#This Row],[Período Atual]]/Receitas_das_Vendas1[[#This Row],[Período Anterior]])-1))),\"-\")","v":{"v":0,"d":"0.00%"}},{"$f":"IFERROR(IF(Receitas_das_Vendas1[[#This Row],[Orçamento]]=Receitas_das_Vendas1[[#This Row],[Período Atual]],0,IF(Receitas_das_Vendas1[[#This Row],[Período Atual]]>Receitas_das_Vendas1[[#This Row],[Orçamento]],ABS((Receitas_das_Vendas1[[#This Row],[Período Atual]]/Receitas_das_Vendas1[[#This Row],[Orçamento]])-1),IF(AND(Receitas_das_Vendas1[[#This Row],[Período Atual]]<Receitas_das_Vendas1[[#This Row],[Orçamento]],Receitas_das_Vendas1[[#This Row],[Orçamento]]<0),-((Receitas_das_Vendas1[[#This Row],[Período Atual]]/Receitas_das_Vendas1[[#This Row],[Orçamento]])-1),(Receitas_das_Vendas1[[#This Row],[Período Atual]]/Receitas_das_Vendas1[[#This Row],[Orçamento]])-1))),\"-\")","v":{"v":0,"d":"0.00%"}}]
[null,"Custos das Vendas","Produto/Serviço 1",{"$nulls":3},{"$f":"IFERROR(IF(Receitas_das_Vendas1[[#Totals],[Período Atual]]=0,\"-\",Receitas_das_Vendas1[[#This Row],[Período Atual]]/Receitas_das_Vendas),\"-\")","v":"-"},{"$f":"IFERROR(IF(Receitas_das_Vendas1[[#This Row],[Período Anterior]]=Receitas_das_Vendas1[[#This Row],[Período Atual]],0,IF(Receitas_das_Vendas1[[#This Row],[Período Atual]]>Receitas_das_Vendas1[[#This Row],[Período Anterior]],ABS((Receitas_das_Vendas1[[#This Row],[Período Atual]]/Receitas_das_Vendas1[[#This Row],[Período Anterior]])-1),IF(AND(Receitas_das_Vendas1[[#This Row],[Período Atual]]<Receitas_das_Vendas1[[#This Row],[Período Anterior]],Receitas_das_Vendas1[[#This Row],[Período Anterior]]<0),-((Receitas_das_Vendas1[[#This Row],[Período Atual]]/Receitas_das_Vendas1[[#This Row],[Período Anterior]])-1),(Receitas_das_Vendas1[[#This Row],[Período Atual]]/Receitas_das_Vendas1[[#This Row],[Período Anterior]])-1))),\"-\")","v":{"v":0,"d":"0.00%"}},{"$f":"IFERROR(IF(Receitas_das_Vendas1[[#This Row],[Orçamento]]=Receitas_das_Vendas1[[#This Row],[Período Atual]],0,IF(Receitas_das_Vendas1[[#This Row],[Período Atual]]>Receitas_das_Vendas1[[#This Row],[Orçamento]],ABS((Receitas_das_Vendas1[[#This Row],[Período Atual]]/Receitas_das_Vendas1[[#This Row],[Orçamento]])-1),IF(AND(Receitas_das_Vendas1[[#This Row],[Período Atual]]<Receitas_das_Vendas1[[#This Row],[Orçamento]],Receitas_das_Vendas1[[#This Row],[Orçamento]]<0),-((Receitas_das_Vendas1[[#This Row],[Período Atual]]/Receitas_das_Vendas1[[#This Row],[Orçamento]])-1),(Receitas_das_Vendas1[[#This Row],[Período Atual]]/Receitas_das_Vendas1[[#This Row],[Orçamento]])-1))),\"-\")","v":{"v":0,"d":"0.00%"}}]
[null,"Custos das Vendas","Produto/Serviço 2",{"$nulls":3},{"$f":"IFERROR(IF(Receitas_das_Vendas1[[#Totals],[Período Atual]]=0,\"-\",Receitas_das_Vendas1[[#This Row],[Período Atual]]/Receitas_das_Vendas),\"-\")","v":"-"},{"$f":"IFERROR(IF(Receitas_das_Vendas1[[#This Row],[Período Anterior]]=Receitas_das_Vendas1[[#This Row],[Período Atual]],0,IF(Receitas_das_Vendas1[[#This Row],[Período Atual]]>Receitas_das_Vendas1[[#This Row],[Período Anterior]],ABS((Receitas_das_Vendas1[[#This Row],[Período Atual]]/Receitas_das_Vendas1[[#This Row],[Período Anterior]])-1),IF(AND(Receitas_das_Vendas1[[#This Row],[Período Atual]]<Receitas_das_Vendas1[[#This Row],[Período Anterior]],Receitas_das_Vendas1[[#This Row],[Período Anterior]]<0),-((Receitas_das_Vendas1[[#This Row],[Período Atual]]/Receitas_das_Vendas1[[#This Row],[Período Anterior]])-1),(Receitas_das_Vendas1[[#This Row],[Período Atual]]/Receitas_das_Vendas1[[#This Row],[Período Anterior]])-1))),\"-\")","v":{"v":0,"d":"0.00%"}},{"$f":"IFERROR(IF(Receitas_das_Vendas1[[#This Row],[Orçamento]]=Receitas_das_Vendas1[[#This Row],[Período Atual]],0,IF(Receitas_das_Vendas1[[#This Row],[Período Atual]]>Receitas_das_Vendas1[[#This Row],[Orçamento]],ABS((Receitas_das_Vendas1[[#This Row],[Período Atual]]/Receitas_das_Vendas1[[#This Row],[Orçamento]])-1),IF(AND(Receitas_das_Vendas1[[#This Row],[Período Atual]]<Receitas_das_Vendas1[[#This Row],[Orçamento]],Receitas_das_Vendas1[[#This Row],[Orçamento]]<0),-((Receitas_das_Vendas1[[#This Row],[Período Atual]]/Receitas_das_Vendas1[[#This Row],[Orçamento]])-1),(Receitas_das_Vendas1[[#This Row],[Período Atual]]/Receitas_das_Vendas1[[#This Row],[Orçamento]])-1))),\"-\")","v":{"v":0,"d":"0.00%"}}]
[null,"Custos das Vendas","Produto/Serviço 3",{"$nulls":3},{"$f":"IFERROR(IF(Receitas_das_Vendas1[[#Totals],[Período Atual]]=0,\"-\",Receitas_das_Vendas1[[#This Row],[Período Atual]]/Receitas_das_Vendas),\"-\")","v":"-"},{"$f":"IFERROR(IF(Receitas_das_Vendas1[[#This Row],[Período Anterior]]=Receitas_das_Vendas1[[#This Row],[Período Atual]],0,IF(Receitas_das_Vendas1[[#This Row],[Período Atual]]>Receitas_das_Vendas1[[#This Row],[Período Anterior]],ABS((Receitas_das_Vendas1[[#This Row],[Período Atual]]/Receitas_das_Vendas1[[#This Row],[Período Anterior]])-1),IF(AND(Receitas_das_Vendas1[[#This Row],[Período Atual]]<Receitas_das_Vendas1[[#This Row],[Período Anterior]],Receitas_das_Vendas1[[#This Row],[Período Anterior]]<0),-((Receitas_das_Vendas1[[#This Row],[Período Atual]]/Receitas_das_Vendas1[[#This Row],[Período Anterior]])-1),(Receitas_das_Vendas1[[#This Row],[Período Atual]]/Receitas_das_Vendas1[[#This Row],[Período Anterior]])-1))),\"-\")","v":{"v":0,"d":"0.00%"}},{"$f":"IFERROR(IF(Receitas_das_Vendas1[[#This Row],[Orçamento]]=Receitas_das_Vendas1[[#This Row],[Período Atual]],0,IF(Receitas_das_Vendas1[[#This Row],[Período Atual]]>Receitas_das_Vendas1[[#This Row],[Orçamento]],ABS((Receitas_das_Vendas1[[#This Row],[Período Atual]]/Receitas_das_Vendas1[[#This Row],[Orçamento]])-1),IF(AND(Receitas_das_Vendas1[[#This Row],[Período Atual]]<Receitas_das_Vendas1[[#This Row],[Orçamento]],Receitas_das_Vendas1[[#This Row],[Orçamento]]<0),-((Receitas_das_Vendas1[[#This Row],[Período Atual]]/Receitas_das_Vendas1[[#This Row],[Orçamento]])-1),(Receitas_das_Vendas1[[#This Row],[Período Atual]]/Receitas_das_Vendas1[[#This Row],[Orçamento]])-1))),\"-\")","v":{"v":0,"d":"0.00%"}}]
[null,"Custos das Vendas","Produto/Serviço 4",{"$nulls":3},{"$f":"IFERROR(IF(Receitas_das_Vendas1[[#Totals],[Período Atual]]=0,\"-\",Receitas_das_Vendas1[[#This Row],[Período Atual]]/Receitas_das_Vendas),\"-\")","v":"-"},{"$f":"IFERROR(IF(Receitas_das_Vendas1[[#This Row],[Período Anterior]]=Receitas_das_Vendas1[[#This Row],[Período Atual]],0,IF(Receitas_das_Vendas1[[#This Row],[Período Atual]]>Receitas_das_Vendas1[[#This Row],[Período Anterior]],ABS((Receitas_das_Vendas1[[#This Row],[Período Atual]]/Receitas_das_Vendas1[[#This Row],[Período Anterior]])-1),IF(AND(Receitas_das_Vendas1[[#This Row],[Período Atual]]<Receitas_das_Vendas1[[#This Row],[Período Anterior]],Receitas_das_Vendas1[[#This Row],[Período Anterior]]<0),-((Receitas_das_Vendas1[[#This Row],[Período Atual]]/Receitas_das_Vendas1[[#This Row],[Período Anterior]])-1),(Receitas_das_Vendas1[[#This Row],[Período Atual]]/Receitas_das_Vendas1[[#This Row],[Período Anterior]])-1))),\"-\")","v":{"v":0,"d":"0.00%"}},{"$f":"IFERROR(IF(Receitas_das_Vendas1[[#This Row],[Orçamento]]=Receitas_das_Vendas1[[#This Row],[Período Atual]],0,IF(Receitas_das_Vendas1[[#This Row],[Período Atual]]>Receitas_das_Vendas1[[#This Row],[Orçamento]],ABS((Receitas_das_Vendas1[[#This Row],[Período Atual]]/Receitas_das_Vendas1[[#This Row],[Orçamento]])-1),IF(AND(Receitas_das_Vendas1[[#This Row],[Período Atual]]<Receitas_das_Vendas1[[#This Row],[Orçamento]],Receitas_das_Vendas1[[#This Row],[Orçamento]]<0),-((Receitas_das_Vendas1[[#This Row],[Período Atual]]/Receitas_das_Vendas1[[#This Row],[Orçamento]])-1),(Receitas_das_Vendas1[[#This Row],[Período Atual]]/Receitas_das_Vendas1[[#This Row],[Orçamento]])-1))),\"-\")","v":{"v":0,"d":"0.00%"}}]
[null,"Receita Total das Vendas",null,{"$f":"SUBTOTAL(109,Receitas_das_Vendas1[Período Anterior])","v":0},{"$f":"SUBTOTAL(109,Receitas_das_Vendas1[Orçamento])","v":0},{"$f":"SUBTOTAL(109,Receitas_das_Vendas1[Período Atual])","v":0},{"$f":"SUBTOTAL(109,Receitas_das_Vendas1[Período Atual em % de Vendas])","v":{"v":0,"d":"0.00%"}},{"$f":"SUBTOTAL(109,Receitas_das_Vendas1[% de Alteração Com Base no Período Anterior])","v":{"v":0,"d":"0.00%"}},{"$f":"SUBTOTAL(109,Receitas_das_Vendas1[% de Alteração Com Base no Orçamento])","v":{"v":0,"d":"0.00%"}}]

{"sheet":"Rendimentos","index":2,"n_rows":7,"n_cols":9,"rows_kept":7,"merged":[[0,7,2,8]]}
[null,{"$f":"Workbook_Title","v":"Demonstração dos Resultados"}]
[null,{"$f":"Nome_da_Empresa","v":"Nome da Empresa"},"Indicado em milhares"]
[null,"Rendimentos",{"$f":"IFERROR(Rendimentos[[#Totals],[Período Atual]],\"-\")","v":0}]
[null,"Tipo de Rendimentos","Descrição","Período Anterior","Orçamento","Período Atual","Período Atual em % de Vendas","% de Alteração Com Base no Período Anterior","% de Alteração Com Base no Orçamento"]
[null,"Rendimentos","Outros Rendimentos",{"$nulls":3},{"$f":"IFERROR(IF(Receitas_das_Vendas=0,\"-\",Rendimentos[[#This Row],[Período Atual]]/Receitas_das_Vendas),\"-\")","v":"-"},{"$f":"IFERROR(IF(Rendimentos[[#This Row],[Período Anterior]]=Rendimentos[[#This Row],[Período Atual]],0,IF(Rendimentos[[#This Row],[Período Atual]]>Rendimentos[[#This Row],[Período Anterior]],ABS((Rendimentos[[#This Row],[Período Atual]]/Rendimentos[[#This Row],[Período Anterior]])-1),IF(AND(Rendimentos[[#This Row],[Período Atual]]<Rendimentos[[#This Row],[Período Anterior]],Rendimentos[[#This Row],[Período Anterior]]<0),-((Rendimentos[[#This Row],[Período Atual]]/Rendimentos[[#This Row],[Período Anterior]])-1),(Rendimentos[[#This Row],[Período Atual]]/Rendimentos[[#This Row],[Período Anterior]])-1))),\"-\")","v":{"v":0,"d":"0.00%"}},{"$f":"IFERROR(IF(Rendimentos[[#This Row],[Orçamento]]=Rendimentos[[#This Row],[Período Atual]],0,IF(Rendimentos[[#This Row],[Período Atual]]>Rendimentos[[#This Row],[Orçamento]],ABS((Rendimentos[[#This Row],[Período Atual]]/Rendimentos[[#This Row],[Orçamento]])-1),IF(AND(Rendimentos[[#This Row],[Período Atual]]<Rendimentos[[#This Row],[Orçamento]],Rendimentos[[#This Row],[Orçamento]]<0),-((Rendimentos[[#This Row],[Período Atual]]/Rendimentos[[#This Row],[Orçamento]])-1),(Rendimentos[[#This Row],[Período Atual]]/Rendimentos[[#This Row],[Orçamento]])-1))),\"-\")","v":{"v":0,"d":"0.00%"}}]
[{"$nulls":6},{"$f":"IFERROR(IF(Receitas_das_Vendas=0,\"-\",Rendimentos[[#This Row],[Período Atual]]/Receitas_das_Vendas),\"-\")","v":"-"},{"$f":"IFERROR(IF(Rendimentos[[#This Row],[Período Anterior]]=Rendimentos[[#This Row],[Período Atual]],0,IF(Rendimentos[[#This Row],[Período Atual]]>Rendimentos[[#This Row],[Período Anterior]],ABS((Rendimentos[[#This Row],[Período Atual]]/Rendimentos[[#This Row],[Período Anterior]])-1),IF(AND(Rendimentos[[#This Row],[Período Atual]]<Rendimentos[[#This Row],[Período Anterior]],Rendimentos[[#This Row],[Período Anterior]]<0),-((Rendimentos[[#This Row],[Período Atual]]/Rendimentos[[#This Row],[Período Anterior]])-1),(Rendimentos[[#This Row],[Período Atual]]/Rendimentos[[#This Row],[Período Anterior]])-1))),\"-\")","v":{"v":0,"d":"0.00%"}},{"$f":"IFERROR(IF(Rendimentos[[#This Row],[Orçamento]]=Rendimentos[[#This Row],[Período Atual]],0,IF(Rendimentos[[#This Row],[Período Atual]]>Rendimentos[[#This Row],[Orçamento]],ABS((Rendimentos[[#This Row],[Período Atual]]/Rendimentos[[#This Row],[Orçamento]])-1),IF(AND(Rendimentos[[#This Row],[Período Atual]]<Rendimentos[[#This Row],[Orçamento]],Rendimentos[[#This Row],[Orçamento]]<0),-((Rendimentos[[#This Row],[Período Atual]]/Rendimentos[[#This Row],[Orçamento]])-1),(Rendimentos[[#This Row],[Período Atual]]/Rendimentos[[#This Row],[Orçamento]])-1))),\"-\")","v":{"v":0,"d":"0.00%"}}]
[null,"Rendimentos Totais das Vendas",null,{"$f":"SUBTOTAL(109,Rendimentos[Período Anterior])","v":0},{"$f":"SUBTOTAL(109,Rendimentos[Orçamento])","v":0},{"$f":"SUBTOTAL(109,Rendimentos[Período Atual])","v":0},{"$f":"SUBTOTAL(109,Rendimentos[Período Atual em % de Vendas])","v":{"v":0,"d":"0.00%"}},{"$f":"SUBTOTAL(109,Rendimentos[% de Alteração Com Base no Período Anterior])","v":{"v":0,"d":"0.00%"}},{"$f":"SUBTOTAL(109,Rendimentos[% de Alteração Com Base no Orçamento])","v":{"v":0,"d":"0.00%"}}]

{"sheet":"Despesas","index":3,"n_rows":25,"n_cols":9,"rows_kept":25,"merged":[[0,7,2,8]]}
[null,{"$f":"Workbook_Title","v":"Demonstração dos Resultados"}]
[null,{"$f":"Nome_da_Empresa","v":"Nome da Empresa"},"Indicado em milhares"]
[null,"Despesas Operacionais",{"$f":"IFERROR(OperatingExpenses[[#Totals],[Período Atual]],\"-\")","v":0}]
[null,"Tipo de Despesa","Descrição","Período Anterior","Orçamento","Período Atual","Período Atual em % de Vendas","% de Alteração Com Base no Período Anterior","% de Alteração Com Base no Orçamento"]
[null,"Vendas e Marketing","Publicidade",{"$nulls":3},{"$f":"IFERROR(IF(Receitas_das_Vendas=0,\"-\",OperatingExpenses[[#This Row],[Período Atual]]/Receitas_das_Vendas),\"-\")","v":"-"},{"$f":"IFERROR(IF(OperatingExpenses[[#This Row],[Período Anterior]]=OperatingExpenses[[#This Row],[Período Atual]],0,IF(OperatingExpenses[[#This Row],[Período Atual]]>OperatingExpenses[[#This Row],[Período Anterior]],ABS((OperatingExpenses[[#This Row],[Período Atual]]/OperatingExpenses[[#This Row],[Período Anterior]])-1),IF(AND(OperatingExpenses[[#This Row],[Período Atual]]<OperatingExpenses[[#This Row],[Período Anterior]],OperatingExpenses[[#This Row],[Período Anterior]]<0),-((OperatingExpenses[[#This Row],[Período Atual]]/OperatingExpenses[[#This Row],[Período Anterior]])-1),(OperatingExpenses[[#This Row],[Período Atual]]/OperatingExpenses[[#This Row],[Período Anterior]])-1))),\"-\")","v":{"v":0,"d":"0.00%"}},{"$f":"IFERROR(IF(OperatingExpenses[[#This Row],[Orçamento]]=OperatingExpenses[[#This Row],[Período Atual]],0,IF(OperatingExpenses[[#This Row],[Período Atual]]>OperatingExpenses[[#This Row],[Orçamento]],ABS((OperatingExpenses[[#This Row],[Período Atual]]/OperatingExpenses[[#This Row],[Orçamento]])-1),IF(AND(OperatingExpenses[[#This Row],[Período Atual]]<OperatingExpenses[[#This Row],[Orçamento]],OperatingExpenses[[#This Row],[Orçamento]]<0),-((OperatingExpenses[[#This Row],[Período Atual]]/OperatingExpenses[[#This Row],[Orçamento]])-1),(OperatingExpenses[[#This Row],[Período Atual]]/OperatingExpenses[[#This Row],[Orçamento]])-1))),\"-\")","v":{"v":0,"d":"0.00%"}}]
[null,"Vendas e Marketing","Marketing direto",{"$nulls":3},{"$f":"IFERROR(IF(Receitas_das_Vendas=0,\"-\",OperatingExpenses[[#This Row],[Período Atual]]/Receitas_das_Vendas),\"-\")","v":"-"},{"$f":"IFERROR(IF(OperatingExpenses[[#This Row],[Período Anterior]]=OperatingExpenses[[#This Row],[Período Atual]],0,IF(OperatingExpenses[[#This Row],[Período Atual]]>OperatingExpenses[[#This Row],[Período Anterior]],ABS((OperatingExpenses[[#This Row],[Período Atual]]/OperatingExpenses[[#This Row],[Período Anterior]])-1),IF(AND(OperatingExpenses[[#This Row],[Período Atual]]<OperatingExpenses[[#This Row],[Período Anterior]],OperatingExpenses[[#This Row],[Período Anterior]]<0),-((OperatingExpenses[[#This Row],[Período Atual]]/OperatingExpenses[[#This Row],[Período Anterior]])-1),(OperatingExpenses[[#This Row],[Período Atual]]/OperatingExpenses[[#This Row],[Período Anterior]])-1))),\"-\")","v":{"v":0,"d":"0.00%"}},{"$f":"IFERROR(IF(OperatingExpenses[[#This Row],[Orçamento]]=OperatingExpenses[[#This Row],[Período Atual]],0,IF(OperatingExpenses[[#This Row],[Período Atual]]>OperatingExpenses[[#This Row],[Orçamento]],ABS((OperatingExpenses[[#This Row],[Período Atual]]/OperatingExpenses[[#This Row],[Orçamento]])-1),IF(AND(OperatingExpenses[[#This Row],[Período Atual]]<OperatingExpenses[[#This Row],[Orçamento]],OperatingExpenses[[#This Row],[Orçamento]]<0),-((OperatingExpenses[[#This Row],[Período Atual]]/OperatingExpenses[[#This Row],[Orçamento]])-1),(OperatingExpenses[[#This Row],[Período Atual]]/OperatingExpenses[[#This Row],[Orçamento]])-1))),\"-\")","v":{"v":0,"d":"0.00%"}}]
[null,"Vendas e Marketing","Outras despesas (especificar)",{"$nulls":3},{"$f":"IFERROR(IF(Receitas_das_Vendas=0,\"-\",OperatingExpenses[[#This Row],[Período Atual]]/Receitas_das_Vendas),\"-\")","v":"-"},{"$f":"IFERROR(IF(OperatingExpenses[[#This Row],[Período Anterior]]=OperatingExpenses[[#This Row],[Período Atual]],0,IF(OperatingExpenses[[#This Row],[Período Atual]]>OperatingExpenses[[#This Row],[Período Anterior]],ABS((OperatingExpenses[[#This Row],[Período Atual]]/OperatingExpenses[[#This Row],[Período Anterior]])-1),IF(AND(OperatingExpenses[[#This Row],[Período Atual]]<OperatingExpenses[[#This Row],[Período Anterior]],OperatingExpenses[[#This Row],[Período Anterior]]<0),-((OperatingExpenses[[#This Row],[Período Atual]]/OperatingExpenses[[#This Row],[Período Anterior]])-1),(OperatingExpenses[[#This Row],[Período Atual]]/OperatingExpenses[[#This Row],[Período Anterior]])-1))),\"-\")","v":{"v":0,"d":"0.00%"}},{"$f":"IFERROR(IF(OperatingExpenses[[#This Row],[Orçamento]]=OperatingExpenses[[#This Row],[Período Atual]],0,IF(OperatingExpenses[[#This Row],[Período Atual]]>OperatingExpenses[[#This Row],[Orçamento]],ABS((OperatingExpenses[[#This Row],[Período Atual]]/OperatingExpenses[[#This Row],[Orçamento]])-1),IF(AND(OperatingExpenses[[#This Row],[Período Atual]]<OperatingExpenses[[#This Row],[Orçamento]],OperatingExpenses[[#This Row],[Orçamento]]<0),-((OperatingExpenses[[#This Row],[Período Atual]]/OperatingExpenses[[#This Row],[Orçamento]])-1),(OperatingExpenses[[#This Row],[Período Atual]]/OperatingExpenses[[#This Row],[Orçamento]])-1))),\"-\")","v":{"v":0,"d":"0.00%"}}]
[null,"Vendas e Marketing","Outras despesas (especificar)",{"$nulls":3},{"$f":"IFERROR(IF(Receitas_das_Vendas=0,\"-\",OperatingExpenses[[#This Row],[Período Atual]]/Receitas_das_Vendas),\"-\")","v":"-"},{"$f":"IFERROR(IF(OperatingExpenses[[#This Row],[Período Anterior]]=OperatingExpenses[[#This Row],[Período Atual]],0,IF(OperatingExpenses[[#This Row],[Período Atual]]>OperatingExpenses[[#This Row],[Período Anterior]],ABS((OperatingExpenses[[#This Row],[Período Atual]]/OperatingExpenses[[#This Row],[Período Anterior]])-1),IF(AND(OperatingExpenses[[#This Row],[Período Atual]]<OperatingExpenses[[#This Row],[Período Anterior]],OperatingExpenses[[#This Row],[Período Anterior]]<0),-((OperatingExpenses[[#This Row],[Período Atual]]/OperatingExpenses[[#This Row],[Período Anterior]])-1),(OperatingExpenses[[#This Row],[Período Atual]]/OperatingExpenses[[#This Row],[Período Anterior]])-1))),\"-\")","v":{"v":0,"d":"0.00%"}},{"$f":"IFERROR(IF(OperatingExpenses[[#This Row],[Orçamento]]=OperatingExpenses[[#This Row],[Período Atual]],0,IF(OperatingExpenses[[#This Row],[Período Atual]]>OperatingExpenses[[#This Row],[Orçamento]],ABS((OperatingExpenses[[#This Row],[Período Atual]]/OperatingExpenses[[#This Row],[Orçamento]])-1),IF(AND(OperatingExpenses[[#This Row],[Período Atual]]<OperatingExpenses[[#This Row],[Orçamento]],OperatingExpenses[[#This Row],[Orçamento]]<0),-((OperatingExpenses[[#This Row],[Período Atual]]/OperatingExpenses[[#This Row],[Orçamento]])-1),(OperatingExpenses[[#This Row],[Período Atual]]/OperatingExpenses[[#This Row],[Orçamento]])-1))),\"-\")","v":{"v":0,"d":"0.00%"}}]
[null,"Investigação e Desenvolvimento","Licenças de tecnologias",{"$nulls":3},{"$f":"IFERROR(IF(Receitas_das_Vendas=0,\"-\",OperatingExpenses[[#This Row],[Período Atual]]/Receitas_das_Vendas),\"-\")","v":"-"},{"$f":"IFERROR(IF(OperatingExpenses[[#This Row],[Período Anterior]]=OperatingExpenses[[#This Row],[Período Atual]],0,IF(OperatingExpenses[[#This Row],[Período Atual]]>OperatingExpenses[[#This Row],[Período Anterior]],ABS((OperatingExpenses[[#This Row],[Período Atual]]/OperatingExpenses[[#This Row],[Período Anterior]])-1),IF(AND(OperatingExpenses[[#This Row],[Período Atual]]<OperatingExpenses[[#This Row],[Período Anterior]],OperatingExpenses[[#This Row],[Período Anterior]]<0),-((OperatingExpenses[[#This Row],[Período Atual]]/OperatingExpenses[[#This Row],[Período Anterior]])-1),(OperatingExpenses[[#This Row],[Período Atual]]/OperatingExpenses[[#This Row],[Período Anterior]])-1))),\"-\")","v":{"v":0,"d":"0.00%"}},{"$f":"IFERROR(IF(OperatingExpenses[[#This Row],[Orçamento]]=OperatingExpenses[[#This Row],[Período Atual]],0,IF(OperatingExpenses[[#This Row],[Período Atual]]>OperatingExpenses[[#This Row],[Orçamento]],ABS((OperatingExpenses[[#This Row],[Período Atual]]/OperatingExpenses[[#This Row],[Orçamento]])-1),IF(AND(OperatingExpenses[[#This Row],[Período Atual]]<OperatingExpenses[[#This Row],[Orçamento]],OperatingExpenses[[#This Row],[Orçamento]]<0),-((OperatingExpenses[[#This Row],[Período Atual]]/OperatingExpenses[[#This Row],[Orçamento]])-1),(OperatingExpenses[[#This Row],[Período Atual]]/OperatingExpenses[[#This Row],[Orçamento]])-1))),\"-\")","v":{"v":0,"d":"0.00%"}}]
[null,"Investigação e Desenvolvimento","Patentes ",{"$nulls":3},{"$f":"IFERROR(IF(Receitas_das_Vendas=0,\"-\",OperatingExpenses[[#This Row],[Período Atual]]/Receitas_das_Vendas),\"-\")","v":"-"},{"$f":"IFERROR(IF(OperatingExpenses[[#This Row],[Período Anterior]]=OperatingExpenses[[#This Row],[Período Atual]],0,IF(OperatingExpenses[[#This Row],[Período Atual]]>OperatingExpenses[[#This Row],[Período Anterior]],ABS((OperatingExpenses[[#This Row],[Período Atual]]/OperatingExpenses[[#This Row],[Período Anterior]])-1),IF(AND(OperatingExpenses[[#This Row],[Período Atual]]<OperatingExpenses[[#This Row],[Período Anterior]],OperatingExpenses[[#This Row],[Período Anterior]]<0),-((OperatingExpenses[[#This Row],[Período Atual]]/OperatingExpenses[[#This Row],[Período Anterior]])-1),(OperatingExpenses[[#This Row],[Período Atual]]/OperatingExpenses[[#This Row],[Período Anterior]])-1))),\"-\")","v":{"v":0,"d":"0.00%"}},{"$f":"IFERROR(IF(OperatingExpenses[[#This Row],[Orçamento]]=OperatingExpenses[[#This Row],[Período Atual]],0,IF(OperatingExpenses[[#This Row],[Período Atual]]>OperatingExpenses[[#This Row],[Orçamento]],ABS((OperatingExpenses[[#This Row],[Período Atual]]/OperatingExpenses[[#This Row],[Orçamento]])-1),IF(AND(OperatingExpenses[[#This Row],[Período Atual]]<OperatingExpenses[[#This Row],[Orçamento]],OperatingExpenses[[#This Row],[Orçamento]]<0),-((OperatingExpenses[[#This Row],[Período Atual]]/OperatingExpenses[[#This Row],[Orçamento]])-1),(OperatingExpenses[[#This Row],[Período Atual]]/OperatingExpenses[[#This Row],[Orçamento]])-1))),\"-\")","v":{"v":0,"d":"0.00%"}}]
[null,"Investigação e Desenvolvimento","Outras despesas (especificar)",{"$nulls":3},{"$f":"IFERROR(IF(Receitas_das_Vendas=0,\"-\",OperatingExpenses[[#This Row],[Período Atual]]/Receitas_das_Vendas),\"-\")","v":"-"},{"$f":"IFERROR(IF(OperatingExpenses[[#This Row],[Período Anterior]]=OperatingExpenses[[#This Row],[Período Atual]],0,IF(OperatingExpenses[[#This Row],[Período Atual]]>OperatingExpenses[[#This Row],[Período Anterior]],ABS((OperatingExpenses[[#This Row],[Período Atual]]/OperatingExpenses[[#This Row],[Período Anterior]])-1),IF(AND(OperatingExpenses[[#This Row],[Período Atual]]<OperatingExpenses[[#This Row],[Período Anterior]],OperatingExpenses[[#This Row],[Período Anterior]]<0),-((OperatingExpenses[[#This Row],[Período Atual]]/OperatingExpenses[[#This Row],[Período Anterior]])-1),(OperatingExpenses[[#This Row],[Período Atual]]/OperatingExpenses[[#This Row],[Período Anterior]])-1))),\"-\")","v":{"v":0,"d":"0.00%"}},{"$f":"IFERROR(IF(OperatingExpenses[[#This Row],[Orçamento]]=OperatingExpenses[[#This Row],[Período Atual]],0,IF(OperatingExpenses[[#This Row],[Período Atual]]>OperatingExpenses[[#This Row],[Orçamento]],ABS((OperatingExpenses[[#This Row],[Período Atual]]/OperatingExpenses[[#This Row],[Orçamento]])-1),IF(AND(OperatingExpenses[[#This Row],[Período Atual]]<OperatingExpenses[[#This Row],[Orçamento]],OperatingExpenses[[#This Row],[Orçamento]]<0),-((OperatingExpenses[[#This Row],[Período Atual]]/OperatingExpenses[[#This Row],[Orçamento]])-1),(OperatingExpenses[[#This Row],[Período Atual]]/OperatingExpenses[[#This Row],[Orçamento]])-1))),\"-\")","v":{"v":0,"d":"0.00%"}}]
[null,"Investigação e Desenvolvimento","Outras despesas (especificar)",{"$nulls":3},{"$f":"IFERROR(IF(Receitas_das_Vendas=0,\"-\",OperatingExpenses[[#This Row],[Período Atual]]/Receitas_das_Vendas),\"-\")","v":"-"},{"$f":"IFERROR(IF(OperatingExpenses[[#This Row],[Período Anterior]]=OperatingExpenses[[#This Row],[Período Atual]],0,IF(OperatingExpenses[[#This Row],[Período Atual]]>OperatingExpenses[[#This Row],[Período Anterior]],ABS((OperatingExpenses[[#This Row],[Período Atual]]/OperatingExpenses[[#This Row],[Período Anterior]])-1),IF(AND(OperatingExpenses[[#This Row],[Período Atual]]<OperatingExpenses[[#This Row],[Período Anterior]],OperatingExpenses[[#This Row],[Período Anterior]]<0),-((OperatingExpenses[[#This Row],[Período Atual]]/OperatingExpenses[[#This Row],[Período Anterior]])-1),(OperatingExpenses[[#This Row],[Período Atual]]/OperatingExpenses[[#This Row],[Período Anterior]])-1))),\"-\")","v":{"v":0,"d":"0.00%"}},{"$f":"IFERROR(IF(OperatingExpenses[[#This Row],[Orçamento]]=OperatingExpenses[[#This Row],[Período Atual]],0,IF(OperatingExpenses[[#This Row],[Período Atual]]>OperatingExpenses[[#This Row],[Orçamento]],ABS((OperatingExpenses[[#This Row],[Período Atual]]/OperatingExpenses[[#This Row],[Orçamento]])-1),IF(AND(OperatingExpenses[[#This Row],[Período Atual]]<OperatingExpenses[[#This Row],[Orçamento]],OperatingExpenses[[#This Row],[Orçamento]]<0),-((OperatingExpenses[[#This Row],[Período Atual]]/OperatingExpenses[[#This Row],[Orçamento]])-1),(OperatingExpenses[[#This Row],[Período Atual]]/OperatingExpenses[[#This Row],[Orçamento]])-1))),\"-\")","v":{"v":0,"d":"0.00%"}}]
[null,"Geral e Administrativo","Salários",{"$nulls":3},{"$f":"IFERROR(IF(Receitas_das_Vendas=0,\"-\",OperatingExpenses[[#This Row],[Período Atual]]/Receitas_das_Vendas),\"-\")","v":"-"},{"$f":"IFERROR(IF(OperatingExpenses[[#This Row],[Período Anterior]]=OperatingExpenses[[#This Row],[Período Atual]],0,IF(OperatingExpenses[[#This Row],[Período Atual]]>OperatingExpenses[[#This Row],[Período Anterior]],ABS((OperatingExpenses[[#This Row],[Período Atual]]/OperatingExpenses[[#This Row],[Período Anterior]])-1),IF(AND(OperatingExpenses[[#This Row],[Período Atual]]<OperatingExpenses[[#This Row],[Período Anterior]],OperatingExpenses[[#This Row],[Período Anterior]]<0),-((OperatingExpenses[[#This Row],[Período Atual]]/OperatingExpenses[[#This Row],[Período Anterior]])-1),(OperatingExpenses[[#This Row],[Período Atual]]/OperatingExpenses[[#This Row],[Período Anterior]])-1))),\"-\")","v":{"v":0,"d":"0.00%"}},{"$f":"IFERROR(IF(OperatingExpenses[[#This Row],[Orçamento]]=OperatingExpenses[[#This Row],[Período Atual]],0,IF(OperatingExpenses[[#This Row],[Período Atual]]>OperatingExpenses[[#This Row],[Orçamento]],ABS((OperatingExpenses[[#This Row],[Período Atual]]/OperatingExpenses[[#This Row],[Orçamento]])-1),IF(AND(OperatingExpenses[[#This Row],[Período Atual]]<OperatingExpenses[[#This Row],[Orçamento]],OperatingExpenses[[#This Row],[Orçamento]]<0),-((OperatingExpenses[[#This Row],[Período Atual]]/OperatingExpenses[[#This Row],[Orçamento]])-1),(OperatingExpenses[[#This Row],[Período Atual]]/OperatingExpenses[[#This Row],[Orçamento]])-1))),\"-\")","v":{"v":0,"d":"0.00%"}}]
[null,"Geral e Administrativo","Serviços externos",{"$nulls":3},{"$f":"IFERROR(IF(Receitas_das_Vendas=0,\"-\",OperatingExpenses[[#This Row],[Período Atual]]/Receitas_das_Vendas),\"-\")","v":"-"},{"$f":"IFERROR(IF(OperatingExpenses[[#This Row],[Período Anterior]]=OperatingExpenses[[#This Row],[Período Atual]],0,IF(OperatingExpenses[[#This Row],[Período Atual]]>OperatingExpenses[[#This Row],[Período Anterior]],ABS((OperatingExpenses[[#This Row],[Período Atual]]/OperatingExpenses[[#This Row],[Período Anterior]])-1),IF(AND(OperatingExpenses[[#This Row],[Período Atual]]<OperatingExpenses[[#This Row],[Período Anterior]],OperatingExpenses[[#This Row],[Período Anterior]]<0),-((OperatingExpenses[[#This Row],[Período Atual]]/OperatingExpenses[[#This Row],[Período Anterior]])-1),(OperatingExpenses[[#This Row],[Período Atual]]/OperatingExpenses[[#This Row],[Período Anterior]])-1))),\"-\")","v":{"v":0,"d":"0.00%"}},{"$f":"IFERROR(IF(OperatingExpenses[[#This Row],[Orçamento]]=OperatingExpenses[[#This Row],[Período Atual]],0,IF(OperatingExpenses[[#This Row],[Período Atual]]>OperatingExpenses[[#This Row],[Orçamento]],ABS((OperatingExpenses[[#This Row],[Período Atual]]/OperatingExpenses[[#This Row],[Orçamento]])-1),IF(AND(OperatingExpenses[[#This Row],[Período Atual]]<OperatingExpenses[[#This Row],[Orçamento]],OperatingExpenses[[#This Row],[Orçamento]]<0),-((OperatingExpenses[[#This Row],[Período Atual]]/OperatingExpenses[[#This Row],[Orçamento]])-1),(OperatingExpenses[[#This Row],[Período Atual]]/OperatingExpenses[[#This Row],[Orçamento]])-1))),\"-\")","v":{"v":0,"d":"0.00%"}}]
[null,"Geral e Administrativo","Materiais",{"$nulls":3},{"$f":"IFERROR(IF(Receitas_das_Vendas=0,\"-\",OperatingExpenses[[#This Row],[Período Atual]]/Receitas_das_Vendas),\"-\")","v":"-"},{"$f":"IFERROR(IF(OperatingExpenses[[#This Row],[Período Anterior]]=OperatingExpenses[[#This Row],[Período Atual]],0,IF(OperatingExpenses[[#This Row],[Período Atual]]>OperatingExpenses[[#This Row],[Período Anterior]],ABS((OperatingExpenses[[#This Row],[Período Atual]]/OperatingExpenses[[#This Row],[Período Anterior]])-1),IF(AND(OperatingExpenses[[#This Row],[Período Atual]]<OperatingExpenses[[#This Row],[Período Anterior]],OperatingExpenses[[#This Row],[Período Anterior]]<0),-((OperatingExpenses[[#This Row],[Período Atual]]/OperatingExpenses[[#This Row],[Período Anterior]])-1),(OperatingExpenses[[#This Row],[Período Atual]]/OperatingExpenses[[#This Row],[Período Anterior]])-1))),\"-\")","v":{"v":0,"d":"0.00%"}},{"$f":"IFERROR(IF(OperatingExpenses[[#This Row],[Orçamento]]=OperatingExpenses[[#This Row],[Período Atual]],0,IF(OperatingExpenses[[#This Row],[Período Atual]]>OperatingExpenses[[#This Row],[Orçamento]],ABS((OperatingExpenses[[#This Row],[Período Atual]]/OperatingExpenses[[#This Row],[Orçamento]])-1),IF(AND(OperatingExpenses[[#This Row],[Período Atual]]<OperatingExpenses[[#This Row],[Orçamento]],OperatingExpenses[[#This Row],[Orçamento]]<0),-((OperatingExpenses[[#This Row],[Período Atual]]/OperatingExpenses[[#This Row],[Orçamento]])-1),(OperatingExpenses[[#This Row],[Período Atual]]/OperatingExpenses[[#This Row],[Orçamento]])-1))),\"-\")","v":{"v":0,"d":"0.00%"}}]
[null,"Geral e Administrativo","Refeições e entretenimento",{"$nulls":3},{"$f":"IFERROR(IF(Receitas_das_Vendas=0,\"-\",OperatingExpenses[[#This Row],[Período Atual]]/Receitas_das_Vendas),\"-\")","v":"-"},{"$f":"IFERROR(IF(OperatingExpenses[[#This Row],[Período Anterior]]=OperatingExpenses[[#This Row],[Período Atual]],0,IF(OperatingExpenses[[#This Row],[Período Atual]]>OperatingExpenses[[#This Row],[Período Anterior]],ABS((OperatingExpenses[[#This Row],[Período Atual]]/OperatingExpenses[[#This Row],[Período Anterior]])-1),IF(AND(OperatingExpenses[[#This Row],[Período Atual]]<OperatingExpenses[[#This Row],[Período Anterior]],OperatingExpenses[[#This Row],[Período Anterior]]<0),-((OperatingExpenses[[#This Row],[Período Atual]]/OperatingExpenses[[#This Row],[Período Anterior]])-1),(OperatingExpenses[[#This Row],[Período Atual]]/OperatingExpenses[[#This Row],[Período Anterior]])-1))),\"-\")","v":{"v":0,"d":"0.00%"}},{"$f":"IFERROR(IF(OperatingExpenses[[#This Row],[Orçamento]]=OperatingExpenses[[#This Row],[Período Atual]],0,IF(OperatingExpenses[[#This Row],[Período Atual]]>OperatingExpenses[[#This Row],[Orçamento]],ABS((OperatingExpenses[[#This Row],[Período Atual]]/OperatingExpenses[[#This Row],[Orçamento]])-1),IF(AND(OperatingExpenses[[#This Row],[Período Atual]]<OperatingExpenses[[#This Row],[Orçamento]],OperatingExpenses[[#This Row],[Orçamento]]<0),-((OperatingExpenses[[#This Row],[Período Atual]]/OperatingExpenses[[#This Row],[Orçamento]])-1),(OperatingExpenses[[#This Row],[Período Atual]]/OperatingExpenses[[#This Row],[Orçamento]])-1))),\"-\")","v":{"v":0,"d":"0.00%"}}]
[null,"Geral e Administrativo","Renda",{"$nulls":3},{"$f":"IFERROR(IF(Receitas_das_Vendas=0,\"-\",OperatingExpenses[[#This Row],[Período Atual]]/Receitas_das_Vendas),\"-\")","v":"-"},{"$f":"IFERROR(IF(OperatingExpenses[[#This Row],[Período Anterior]]=OperatingExpenses[[#This Row],[Período Atual]],0,IF(OperatingExpenses[[#This Row],[Período Atual]]>OperatingExpenses[[#This Row],[Período Anterior]],ABS((OperatingExpenses[[#This Row],[Período Atual]]/OperatingExpenses[[#This Row],[Período Anterior]])-1),IF(AND(OperatingExpenses[[#This Row],[Período Atual]]<OperatingExpenses[[#This Row],[Período Anterior]],OperatingExpenses[[#This Row],[Período Anterior]]<0),-((OperatingExpenses[[#This Row],[Período Atual]]/OperatingExpenses[[#This Row],[Período Anterior]])-1),(OperatingExpenses[[#This Row],[Período Atual]]/OperatingExpenses[[#This Row],[Período Anterior]])-1))),\"-\")","v":{"v":0,"d":"0.00%"}},{"$f":"IFERROR(IF(OperatingExpenses[[#This Row],[Orçamento]]=OperatingExpenses[[#This Row],[Período Atual]],0,IF(OperatingExpenses[[#This Row],[Período Atual]]>OperatingExpenses[[#This Row],[Orçamento]],ABS((OperatingExpenses[[#This Row],[Período Atual]]/OperatingExpenses[[#This Row],[Orçamento]])-1),IF(AND(OperatingExpenses[[#This Row],[Período Atual]]<OperatingExpenses[[#This Row],[Orçamento]],OperatingExpenses[[#This Row],[Orçamento]]<0),-((OperatingExpenses[[#This Row],[Período Atual]]/OperatingExpenses[[#This Row],[Orçamento]])-1),(OperatingExpenses[[#This Row],[Período Atual]]/OperatingExpenses[[#This Row],[Orçamento]])-1))),\"-\")","v":{"v":0,"d":"0.00%"}}]
[null,"Geral e Administrativo","Telefone",{"$nulls":3},{"$f":"IFERROR(IF(Receitas_das_Vendas=0,\"-\",OperatingExpenses[[#This Row],[Período Atual]]/Receitas_das_Vendas),\"-\")","v":"-"},{"$f":"IFERROR(IF(OperatingExpenses[[#This Row],[Período Anterior]]=OperatingExpenses[[#This Row],[Período Atual]],0,IF(OperatingExpenses[[#This Row],[Período Atual]]>OperatingExpenses[[#This Row],[Período Anterior]],ABS((OperatingExpenses[[#This Row],[Período Atual]]/OperatingExpenses[[#This Row],[Período Anterior]])-1),IF(AND(OperatingExpenses[[#This Row],[Período Atual]]<OperatingExpenses[[#This Row],[Período Anterior]],OperatingExpenses[[#This Row],[Período Anterior]]<0),-((OperatingExpenses[[#This Row],[Período Atual]]/OperatingExpenses[[#This Row],[Período Anterior]])-1),(OperatingExpenses[[#This Row],[Período Atual]]/OperatingExpenses[[#This Row],[Período Anterior]])-1))),\"-\")","v":{"v":0,"d":"0.00%"}},{"$f":"IFERROR(IF(OperatingExpenses[[#This Row],[Orçamento]]=OperatingExpenses[[#This Row],[Período Atual]],0,IF(OperatingExpenses[[#This Row],[Período Atual]]>OperatingExpenses[[#This Row],[Orçamento]],ABS((OperatingExpenses[[#This Row],[Período Atual]]/OperatingExpenses[[#This Row],[Orçamento]])-1),IF(AND(OperatingExpenses[[#This Row],[Período Atual]]<OperatingExpenses[[#This Row],[Orçamento]],OperatingExpenses[[#This Row],[Orçamento]]<0),-((OperatingExpenses[[#This Row],[Período Atual]]/OperatingExpenses[[#This Row],[Orçamento]])-1),(OperatingExpenses[[#This Row],[Período Atual]]/OperatingExpenses[[#This Row],[Orçamento]])-1))),\"-\")","v":{"v":0,"d":"0.00%"}}]
[null,"Geral e Administrativo","Serviços públicos",{"$nulls":3},{"$f":"IFERROR(IF(Receitas_das_Vendas=0,\"-\",OperatingExpenses[[#This Row],[Período Atual]]/Receitas_das_Vendas),\"-\")","v":"-"},{"$f":"IFERROR(IF(OperatingExpenses[[#This Row],[Período Anterior]]=OperatingExpenses[[#This Row],[Período Atual]],0,IF(OperatingExpenses[[#This Row],[Período Atual]]>OperatingExpenses[[#This Row],[Período Anterior]],ABS((OperatingExpenses[[#This Row],[Período Atual]]/OperatingExpenses[[#This Row],[Período Anterior]])-1),IF(AND(OperatingExpenses[[#This Row],[Período Atual]]<OperatingExpenses[[#This Row],[Período Anterior]],OperatingExpenses[[#This Row],[Período Anterior]]<0),-((OperatingExpenses[[#This Row],[Período Atual]]/OperatingExpenses[[#This Row],[Período Anterior]])-1),(OperatingExpenses[[#This Row],[Período Atual]]/OperatingExpenses[[#This Row],[Período Anterior]])-1))),\"-\")","v":{"v":0,"d":"0.00%"}},{"$f":"IFERROR(IF(OperatingExpenses[[#This Row],[Orçamento]]=OperatingExpenses[[#This Row],[Período Atual]],0,IF(OperatingExpenses[[#This Row],[Período Atual]]>OperatingExpenses[[#This Row],[Orçamento]],ABS((OperatingExpenses[[#This Row],[Período Atual]]/OperatingExpenses[[#This Row],[Orçamento]])-1),IF(AND(OperatingExpenses[[#This Row],[Período Atual]]<OperatingExpenses[[#This Row],[Orçamento]],OperatingExpenses[[#This Row],[Orçamento]]<0),-((OperatingExpenses[[#This Row],[Período Atual]]/OperatingExpenses[[#This Row],[Orçamento]])-1),(OperatingExpenses[[#This Row],[Período Atual]]/OperatingExpenses[[#This Row],[Orçamento]])-1))),\"-\")","v":{"v":0,"d":"0.00%"}}]
[null,"Geral e Administrativo","Amortizações",{"$nulls":3},{"$f":"IFERROR(IF(Receitas_das_Vendas=0,\"-\",OperatingExpenses[[#This Row],[Período Atual]]/Receitas_das_Vendas),\"-\")","v":"-"},{"$f":"IFERROR(IF(OperatingExpenses[[#This Row],[Período Anterior]]=OperatingExpenses[[#This Row],[Período Atual]],0,IF(OperatingExpenses[[#This Row],[Período Atual]]>OperatingExpenses[[#This Row],[Período Anterior]],ABS((OperatingExpenses[[#This Row],[Período Atual]]/OperatingExpenses[[#This Row],[Período Anterior]])-1),IF(AND(OperatingExpenses[[#This Row],[Período Atual]]<OperatingExpenses[[#This Row],[Período Anterior]],OperatingExpenses[[#This Row],[Período Anterior]]<0),-((OperatingExpenses[[#This Row],[Período Atual]]/OperatingExpenses[[#This Row],[Período Anterior]])-1),(OperatingExpenses[[#This Row],[Período Atual]]/OperatingExpenses[[#This Row],[Período Anterior]])-1))),\"-\")","v":{"v":0,"d":"0.00%"}},{"$f":"IFERROR(IF(OperatingExpenses[[#This Row],[Orçamento]]=OperatingExpenses[[#This Row],[Período Atual]],0,IF(OperatingExpenses[[#This Row],[Período Atual]]>OperatingExpenses[[#This Row],[Orçamento]],ABS((OperatingExpenses[[#This Row],[Período Atual]]/OperatingExpenses[[#This Row],[Orçamento]])-1),IF(AND(OperatingExpenses[[#This Row],[Período Atual]]<OperatingExpenses[[#This Row],[Orçamento]],OperatingExpenses[[#This Row],[Orçamento]]<0),-((OperatingExpenses[[#This Row],[Período Atual]]/OperatingExpenses[[#This Row],[Orçamento]])-1),(OperatingExpenses[[#This Row],[Período Atual]]/OperatingExpenses[[#This Row],[Orçamento]])-1))),\"-\")","v":{"v":0,"d":"0.00%"}}]
[null,"Geral e Administrativo","Seguro",{"$nulls":3},{"$f":"IFERROR(IF(Receitas_das_Vendas=0,\"-\",OperatingExpenses[[#This Row],[Período Atual]]/Receitas_das_Vendas),\"-\")","v":"-"},{"$f":"IFERROR(IF(OperatingExpenses[[#This Row],[Período Anterior]]=OperatingExpenses[[#This Row],[Período Atual]],0,IF(OperatingExpenses[[#This Row],[Período Atual]]>OperatingExpenses[[#This Row],[Período Anterior]],ABS((OperatingExpenses[[#This Row],[Período Atual]]/OperatingExpenses[[#This Row],[Período Anterior]])-1),IF(AND(OperatingExpenses[[#This Row],[Período Atual]]<OperatingExpenses[[#This Row],[Período Anterior]],OperatingExpenses[[#This Row],[Período Anterior]]<0),-((OperatingExpenses[[#This Row],[Período Atual]]/OperatingExpenses[[#This Row],[Período Anterior]])-1),(OperatingExpenses[[#This Row],[Período Atual]]/OperatingExpenses[[#This Row],[Período Anterior]])-1))),\"-\")","v":{"v":0,"d":"0.00%"}},{"$f":"IFERROR(IF(OperatingExpenses[[#This Row],[Orçamento]]=OperatingExpenses[[#This Row],[Período Atual]],0,IF(OperatingExpenses[[#This Row],[Período Atual]]>OperatingExpenses[[#This Row],[Orçamento]],ABS((OperatingExpenses[[#This Row],[Período Atual]]/OperatingExpenses[[#This Row],[Orçamento]])-1),IF(AND(OperatingExpenses[[#This Row],[Período Atual]]<OperatingExpenses[[#This Row],[Orçamento]],OperatingExpenses[[#This Row],[Orçamento]]<0),-((OperatingExpenses[[#This Row],[Período Atual]]/OperatingExpenses[[#This Row],[Orçamento]])-1),(OperatingExpenses[[#This Row],[Período Atual]]/OperatingExpenses[[#This Row],[Orçamento]])-1))),\"-\")","v":{"v":0,"d":"0.00%"}}]
[null,"Geral e Administrativo","Reparações e manutenção",{"$nulls":3},{"$f":"IFERROR(IF(Receitas_das_Vendas=0,\"-\",OperatingExpenses[[#This Row],[Período Atual]]/Receitas_das_Vendas),\"-\")","v":"-"},{"$f":"IFERROR(IF(OperatingExpenses[[#This Row],[Período Anterior]]=OperatingExpenses[[#This Row],[Período Atual]],0,IF(OperatingExpenses[[#This Row],[Período Atual]]>OperatingExpenses[[#This Row],[Período Anterior]],ABS((OperatingExpenses[[#This Row],[Período Atual]]/OperatingExpenses[[#This Row],[Período Anterior]])-1),IF(AND(OperatingExpenses[[#This Row],[Período Atual]]<OperatingExpenses[[#This Row],[Período Anterior]],OperatingExpenses[[#This Row],[Período Anterior]]<0),-((OperatingExpenses[[#This Row],[Período Atual]]/OperatingExpenses[[#This Row],[Período Anterior]])-1),(OperatingExpenses[[#This Row],[Período Atual]]/OperatingExpenses[[#This Row],[Período Anterior]])-1))),\"-\")","v":{"v":0,"d":"0.00%"}},{"$f":"IFERROR(IF(OperatingExpenses[[#This Row],[Orçamento]]=OperatingExpenses[[#This Row],[Período Atual]],0,IF(OperatingExpenses[[#This Row],[Período Atual]]>OperatingExpenses[[#This Row],[Orçamento]],ABS((OperatingExpenses[[#This Row],[Período Atual]]/OperatingExpenses[[#This Row],[Orçamento]])-1),IF(AND(OperatingExpenses[[#This Row],[Período Atual]]<OperatingExpenses[[#This Row],[Orçamento]],OperatingExpenses[[#This Row],[Orçamento]]<0),-((OperatingExpenses[[#This Row],[Período Atual]]/OperatingExpenses[[#This Row],[Orçamento]])-1),(OperatingExpenses[[#This Row],[Período Atual]]/OperatingExpenses[[#This Row],[Orçamento]])-1))),\"-\")","v":{"v":0,"d":"0.00%"}}]
[null,"Geral e Administrativo","Outras despesas (especificar)",{"$nulls":3},{"$f":"IFERROR(IF(Receitas_das_Vendas=0,\"-\",OperatingExpenses[[#This Row],[Período Atual]]/Receitas_das_Vendas),\"-\")","v":"-"},{"$f":"IFERROR(IF(OperatingExpenses[[#This Row],[Período Anterior]]=OperatingExpenses[[#This Row],[Período Atual]],0,IF(OperatingExpenses[[#This Row],[Período Atual]]>OperatingExpenses[[#This Row],[Período Anterior]],ABS((OperatingExpenses[[#This Row],[Período Atual]]/OperatingExpenses[[#This Row],[Período Anterior]])-1),IF(AND(OperatingExpenses[[#This Row],[Período Atual]]<OperatingExpenses[[#This Row],[Período Anterior]],OperatingExpenses[[#This Row],[Período Anterior]]<0),-((OperatingExpenses[[#This Row],[Período Atual]]/OperatingExpenses[[#This Row],[Período Anterior]])-1),(OperatingExpenses[[#This Row],[Período Atual]]/OperatingExpenses[[#This Row],[Período Anterior]])-1))),\"-\")","v":{"v":0,"d":"0.00%"}},{"$f":"IFERROR(IF(OperatingExpenses[[#This Row],[Orçamento]]=OperatingExpenses[[#This Row],[Período Atual]],0,IF(OperatingExpenses[[#This Row],[Período Atual]]>OperatingExpenses[[#This Row],[Orçamento]],ABS((OperatingExpenses[[#This Row],[Período Atual]]/OperatingExpenses[[#This Row],[Orçamento]])-1),IF(AND(OperatingExpenses[[#This Row],[Período Atual]]<OperatingExpenses[[#This Row],[Orçamento]],OperatingExpenses[[#This Row],[Orçamento]]<0),-((OperatingExpenses[[#This Row],[Período Atual]]/OperatingExpenses[[#This Row],[Orçamento]])-1),(OperatingExpenses[[#This Row],[Período Atual]]/OperatingExpenses[[#This Row],[Orçamento]])-1))),\"-\")","v":{"v":0,"d":"0.00%"}}]
[null,"Geral e Administrativo","Outras despesas (especificar)",{"$nulls":3},{"$f":"IFERROR(IF(Receitas_das_Vendas=0,\"-\",OperatingExpenses[[#This Row],[Período Atual]]/Receitas_das_Vendas),\"-\")","v":"-"},{"$f":"IFERROR(IF(OperatingExpenses[[#This Row],[Período Anterior]]=OperatingExpenses[[#This Row],[Período Atual]],0,IF(OperatingExpenses[[#This Row],[Período Atual]]>OperatingExpenses[[#This Row],[Período Anterior]],ABS((OperatingExpenses[[#This Row],[Período Atual]]/OperatingExpenses[[#This Row],[Período Anterior]])-1),IF(AND(OperatingExpenses[[#This Row],[Período Atual]]<OperatingExpenses[[#This Row],[Período Anterior]],OperatingExpenses[[#This Row],[Período Anterior]]<0),-((OperatingExpenses[[#This Row],[Período Atual]]/OperatingExpenses[[#This Row],[Período Anterior]])-1),(OperatingExpenses[[#This Row],[Período Atual]]/OperatingExpenses[[#This Row],[Período Anterior]])-1))),\"-\")","v":{"v":0,"d":"0.00%"}},{"$f":"IFERROR(IF(OperatingExpenses[[#This Row],[Orçamento]]=OperatingExpenses[[#This Row],[Período Atual]],0,IF(OperatingExpenses[[#This Row],[Período Atual]]>OperatingExpenses[[#This Row],[Orçamento]],ABS((OperatingExpenses[[#This Row],[Período Atual]]/OperatingExpenses[[#This Row],[Orçamento]])-1),IF(AND(OperatingExpenses[[#This Row],[Período Atual]]<OperatingExpenses[[#This Row],[Orçamento]],OperatingExpenses[[#This Row],[Orçamento]]<0),-((OperatingExpenses[[#This Row],[Período Atual]]/OperatingExpenses[[#This Row],[Orçamento]])-1),(OperatingExpenses[[#This Row],[Período Atual]]/OperatingExpenses[[#This Row],[Orçamento]])-1))),\"-\")","v":{"v":0,"d":"0.00%"}}]
[null,"Total das Despesas Operacionais",null,{"$f":"SUBTOTAL(109,OperatingExpenses[Período Anterior])","v":0},{"$f":"SUBTOTAL(109,OperatingExpenses[Orçamento])","v":0},{"$f":"SUBTOTAL(109,OperatingExpenses[Período Atual])","v":0},{"$f":"SUBTOTAL(109,OperatingExpenses[Período Atual em % de Vendas])","v":{"v":0,"d":"0.00%"}},{"$f":"SUBTOTAL(109,OperatingExpenses[% de Alteração Com Base no Período Anterior])","v":{"v":0,"d":"0.00%"}},{"$f":"SUBTOTAL(109,OperatingExpenses[% de Alteração Com Base no Orçamento])","v":{"v":0,"d":"0.00%"}}]

{"sheet":"Impostos","index":4,"n_rows":10,"n_cols":9,"rows_kept":10,"merged":[[0,7,2,8]]}
[null,{"$f":"Workbook_Title","v":"Demonstração dos Resultados"}]
[null,{"$f":"Nome_da_Empresa","v":"Nome da Empresa"},"Indicado em milhares"]
[null,"Impostos",{"$f":"IFERROR(Impostos[[#Totals],[Período Atual]],\"-\")","v":0}]
[null,"Tipo","Descrição","Período Anterior","Orçamento","Período Atual","Período Atual em % de Vendas","% de Alteração Com Base no Período Anterior","% de Alteração Com Base no Orçamento"]
[null,"Impostos","Impostos sobre rendimentos",{"$nulls":3},{"$f":"IFERROR(IF(Receitas_das_Vendas=0,\"-\",Impostos[[#This Row],[Período Atual]]/Receitas_das_Vendas),\"-\")","v":"-"},{"$f":"IFERROR(IF(Impostos[[#This Row],[Período Anterior]]=Impostos[[#This Row],[Período Atual]],0,IF(Impostos[[#This Row],[Período Atual]]>Impostos[[#This Row],[Período Anterior]],ABS((Impostos[[#This Row],[Período Atual]]/Impostos[[#This Row],[Período Anterior]])-1),IF(AND(Impostos[[#This Row],[Período Atual]]<Impostos[[#This Row],[Período Anterior]],Impostos[[#This Row],[Período Anterior]]<0),-((Impostos[[#This Row],[Período Atual]]/Impostos[[#This Row],[Período Anterior]])-1),(Impostos[[#This Row],[Período Atual]]/Impostos[[#This Row],[Período Anterior]])-1))),\"-\")","v":{"v":0,"d":"0.00%"}},{"$f":"IFERROR(IF(Impostos[[#This Row],[Orçamento]]=Impostos[[#This Row],[Período Atual]],0,IF(Impostos[[#This Row],[Período Atual]]>Impostos[[#This Row],[Orçamento]],ABS((Impostos[[#This Row],[Período Atual]]/Impostos[[#This Row],[Orçamento]])-1),IF(AND(Impostos[[#This Row],[Período Atual]]<Impostos[[#This Row],[Orçamento]],Impostos[[#This Row],[Orçamento]]<0),-((Impostos[[#This Row],[Período Atual]]/Impostos[[#This Row],[Orçamento]])-1),(Impostos[[#This Row],[Período Atual]]/Impostos[[#This Row],[Orçamento]])-1))),\"-\")","v":{"v":0,"d":"0.00%"}}]
[null,"Impostos","Impostos sobre os salários",{"$nulls":3},{"$f":"IFERROR(IF(Receitas_das_Vendas=0,\"-\",Impostos[[#This Row],[Período Atual]]/Receitas_das_Vendas),\"-\")","v":"-"},{"$f":"IFERROR(IF(Impostos[[#This Row],[Período Anterior]]=Impostos[[#This Row],[Período Atual]],0,IF(Impostos[[#This Row],[Período Atual]]>Impostos[[#This Row],[Período Anterior]],ABS((Impostos[[#This Row],[Período Atual]]/Impostos[[#This Row],[Período Anterior]])-1),IF(AND(Impostos[[#This Row],[Período Atual]]<Impostos[[#This Row],[Período Anterior]],Impostos[[#This Row],[Período Anterior]]<0),-((Impostos[[#This Row],[Período Atual]]/Impostos[[#This Row],[Período Anterior]])-1),(Impostos[[#This Row],[Período Atual]]/Impostos[[#This Row],[Período Anterior]])-1))),\"-\")","v":{"v":0,"d":"0.00%"}},{"$f":"IFERROR(IF(Impostos[[#This Row],[Orçamento]]=Impostos[[#This Row],[Período Atual]],0,IF(Impostos[[#This Row],[Período Atual]]>Impostos[[#This Row],[Orçamento]],ABS((Impostos[[#This Row],[Período Atual]]/Impostos[[#This Row],[Orçamento]])-1),IF(AND(Impostos[[#This Row],[Período Atual]]<Impostos[[#This Row],[Orçamento]],Impostos[[#This Row],[Orçamento]]<0),-((Impostos[[#This Row],[Período Atual]]/Impostos[[#This Row],[Orçamento]])-1),(Impostos[[#This Row],[Período Atual]]/Impostos[[#This Row],[Orçamento]])-1))),\"-\")","v":{"v":0,"d":"0.00%"}}]
[null,"Impostos","Impostos sobre imóveis",{"$nulls":3},{"$f":"IFERROR(IF(Receitas_das_Vendas=0,\"-\",Impostos[[#This Row],[Período Atual]]/Receitas_das_Vendas),\"-\")","v":"-"},{"$f":"IFERROR(IF(Impostos[[#This Row],[Período Anterior]]=Impostos[[#This Row],[Período Atual]],0,IF(Impostos[[#This Row],[Período Atual]]>Impostos[[#This Row],[Período Anterior]],ABS((Impostos[[#This Row],[Período Atual]]/Impostos[[#This Row],[Período Anterior]])-1),IF(AND(Impostos[[#This Row],[Período Atual]]<Impostos[[#This Row],[Período Anterior]],Impostos[[#This Row],[Período Anterior]]<0),-((Impostos[[#This Row],[Período Atual]]/Impostos[[#This Row],[Período Anterior]])-1),(Impostos[[#This Row],[Período Atual]]/Impostos[[#This Row],[Período Anterior]])-1))),\"-\")","v":{"v":0,"d":"0.00%"}},{"$f":"IFERROR(IF(Impostos[[#This Row],[Orçamento]]=Impostos[[#This Row],[Período Atual]],0,IF(Impostos[[#This Row],[Período Atual]]>Impostos[[#This Row],[Orçamento]],ABS((Impostos[[#This Row],[Período Atual]]/Impostos[[#This Row],[Orçamento]])-1),IF(AND(Impostos[[#This Row],[Período Atual]]<Impostos[[#This Row],[Orçamento]],Impostos[[#This Row],[Orçamento]]<0),-((Impostos[[#This Row],[Período Atual]]/Impostos[[#This Row],[Orçamento]])-1),(Impostos[[#This Row],[Período Atual]]/Impostos[[#This Row],[Orçamento]])-1))),\"-\")","v":{"v":0,"d":"0.00%"}}]
[null,"Impostos","Outros impostos (especificar)",{"$nulls":3},{"$f":"IFERROR(IF(Receitas_das_Vendas=0,\"-\",Impostos[[#This Row],[Período Atual]]/Receitas_das_Vendas),\"-\")","v":"-"},{"$f":"IFERROR(IF(Impostos[[#This Row],[Período Anterior]]=Impostos[[#This Row],[Período Atual]],0,IF(Impostos[[#This Row],[Período Atual]]>Impostos[[#This Row],[Período Anterior]],ABS((Impostos[[#This Row],[Período Atual]]/Impostos[[#This Row],[Período Anterior]])-1),IF(AND(Impostos[[#This Row],[Período Atual]]<Impostos[[#This Row],[Período Anterior]],Impostos[[#This Row],[Período Anterior]]<0),-((Impostos[[#This Row],[Período Atual]]/Impostos[[#This Row],[Período Anterior]])-1),(Impostos[[#This Row],[Período Atual]]/Impostos[[#This Row],[Período Anterior]])-1))),\"-\")","v":{"v":0,"d":"0.00%"}},{"$f":"IFERROR(IF(Impostos[[#This Row],[Orçamento]]=Impostos[[#This Row],[Período Atual]],0,IF(Impostos[[#This Row],[Período Atual]]>Impostos[[#This Row],[Orçamento]],ABS((Impostos[[#This Row],[Período Atual]]/Impostos[[#This Row],[Orçamento]])-1),IF(AND(Impostos[[#This Row],[Período Atual]]<Impostos[[#This Row],[Orçamento]],Impostos[[#This Row],[Orçamento]]<0),-((Impostos[[#This Row],[Período Atual]]/Impostos[[#This Row],[Orçamento]])-1),(Impostos[[#This Row],[Período Atual]]/Impostos[[#This Row],[Orçamento]])-1))),\"-\")","v":{"v":0,"d":"0.00%"}}]
[null,"Impostos","Outros impostos (especificar)",{"$nulls":3},{"$f":"IFERROR(IF(Receitas_das_Vendas=0,\"-\",Impostos[[#This Row],[Período Atual]]/Receitas_das_Vendas),\"-\")","v":"-"},{"$f":"IFERROR(IF(Impostos[[#This Row],[Período Anterior]]=Impostos[[#This Row],[Período Atual]],0,IF(Impostos[[#This Row],[Período Atual]]>Impostos[[#This Row],[Período Anterior]],ABS((Impostos[[#This Row],[Período Atual]]/Impostos[[#This Row],[Período Anterior]])-1),IF(AND(Impostos[[#This Row],[Período Atual]]<Impostos[[#This Row],[Período Anterior]],Impostos[[#This Row],[Período Anterior]]<0),-((Impostos[[#This Row],[Período Atual]]/Impostos[[#This Row],[Período Anterior]])-1),(Impostos[[#This Row],[Período Atual]]/Impostos[[#This Row],[Período Anterior]])-1))),\"-\")","v":{"v":0,"d":"0.00%"}},{"$f":"IFERROR(IF(Impostos[[#This Row],[Orçamento]]=Impostos[[#This Row],[Período Atual]],0,IF(Impostos[[#This Row],[Período Atual]]>Impostos[[#This Row],[Orçamento]],ABS((Impostos[[#This Row],[Período Atual]]/Impostos[[#This Row],[Orçamento]])-1),IF(AND(Impostos[[#This Row],[Período Atual]]<Impostos[[#This Row],[Orçamento]],Impostos[[#This Row],[Orçamento]]<0),-((Impostos[[#This Row],[Período Atual]]/Impostos[[#This Row],[Orçamento]])-1),(Impostos[[#This Row],[Período Atual]]/Impostos[[#This Row],[Orçamento]])-1))),\"-\")","v":{"v":0,"d":"0.00%"}}]
[null,"Total dos Impostos",null,{"$f":"SUBTOTAL(109,Impostos[Período Anterior])","v":0},{"$f":"SUBTOTAL(109,Impostos[Orçamento])","v":0},{"$f":"SUBTOTAL(109,Impostos[Período Atual])","v":0},{"$f":"IFERROR(SUBTOTAL(109,Impostos[Período Atual em % de Vendas]),\"-\")","v":{"v":0,"d":"0.00%"}},{"$f":"SUBTOTAL(109,Impostos[% de Alteração Com Base no Período Anterior])","v":{"v":0,"d":"0.00%"}},{"$f":"SUBTOTAL(109,Impostos[% de Alteração Com Base no Orçamento])","v":{"v":0,"d":"0.00%"}}]

{"sheet":"Categorias","index":5,"n_rows":8,"n_cols":2,"rows_kept":8}
[null,"Categorias"]
[null,"Receita das Vendas"]
[null,"Custos das Vendas"]
[null,"Rendimentos"]
[null,"Vendas e Marketing"]
[null,"Investigação e Desenvolvimento"]
[null,"Geral e Administrativo"]
[null,"Impostos"]